bitfinex-derivatives/quotes_BTCF0:USTF0_20230901
["timestamp","ask_amount","ask_price","bid_price","bid_amount"]
[1693589771595,0.73136156,25477.0,25476.0,1.0509]
[1693589771790,0.78689589,25477.0,25476.0,1.0509]
[1693589771986,0.78889589,25477.0,25476.0,1.0729]
[1693589772597,0.76889589,25477.0,25476.0,1.0729]
[1693589772796,0.78789589,25477.0,25476.0,1.0589]
[1693589772994,0.79089589,25477.0,25476.0,1.0959]
[1693589773401,0.79089589,25477.0,25476.0,1.0739]
[1693589773402,0.79289589,25477.0,25476.0,1.0739]
[1693589773594,0.79289589,25477.0,25476.0,1.0509]
[1693589773595,0.79089589,25477.0,25476.0,1.0509]
[1693589774603,0.73136156,25477.0,25476.0,1.0509]
[1693589774992,0.44708579,25477.0,25476.0,1.0509]
[1693589775193,0.00534279,25477.0,25476.0,1.365409]
[1693589775497,0.00534279,25477.0,25476.0,1.62204214]
[1693589776703,0.29984079,25477.0,25476.0,1.16027814]
[1693589776896,0.15259179,25477.0,25476.0,1.30753214]
[1693589777201,0.00534279,25477.0,25476.0,1.30753214]
[1693589778099,0.00534279,25477.0,25476.0,1.45478614]
[1693589778300,0.00534279,25477.0,25476.0,1.47478614]
[1693589778698,0.00393,25474.0,25473.0,0.87009588]
[1693589779006,0.00393,25472.0,25471.0,0.1719]
[1693589779197,0.445761,25472.0,25471.0,1.0369]
[1693589779604,0.445761,25472.0,25471.0,1.14627814]
[1693589779903,0.55915616,25472.0,25471.0,1.0369]
[1693589780099,0.44605939,25472.0,25471.0,1.14627814]
[1693589780306,0.00029839,25472.0,25471.0,1.14627814]
[1693589780501,0.00029839,25472.0,25471.0,1.16627814]
[1693589780700,0.00329839,25472.0,25471.0,1.16627814]
[1693589780900,0.003,25472.0,25471.0,1.16627814]
[1693589781306,0.001,25474.0,25473.0,1.0369]
[1693589781501,0.001,25474.0,25473.0,2.20317814]
[1693589781900,0.00031363,25474.0,25473.0,2.20317814]
[1693589782705,0.00131363,25474.0,25473.0,2.21417814]
[1693589782905,0.001,25474.0,25473.0,2.21417814]
[1693589783103,0.004,25474.0,25473.0,2.21417814]
[1693589783505,0.004,25474.0,25473.0,1.15727814]
[1693589784010,0.00431309,25474.0,25473.0,1.15727814]
[1693589784200,0.00431309,25474.0,25473.0,1.17727814]
[1693589784401,0.00431309,25474.0,25473.0,2.21417814]
[1693589784611,0.00431309,25474.0,25473.0,2.19417814]
[1693589784803,0.00431309,25474.0,25473.0,2.21417814]
[1693589785203,0.30277509,25474.0,25473.0,1.0479]
[1693589785513,0.47004109,25474.0,25473.0,1.0479]
[1693589785702,0.58313786,25474.0,25473.0,1.0479]
[1693589785907,0.64267219,25474.0,25473.0,1.0479]
[1693589786601,0.45004109,25474.0,25473.0,1.0479]
[1693589787413,0.58313786,25474.0,25473.0,1.0479]
[1693589787812,0.64267219,25474.0,25473.0,1.0479]
[1693589788117,0.56313786,25474.0,25473.0,1.0479]
[1693589788424,0.62267219,25474.0,25473.0,1.0479]
[1693589790230,0.76993919,25474.0,25473.0,1.0479]
[1693589790520,0.78993919,25474.0,25473.0,1.01626123]
[1693589790722,0.00393,25469.0,25468.0,0.130427]
[1693589790916,0.00393,25466.0,25464.0,0.147321]
[1693589791117,0.00393,25466.0,25461.0,0.618938]
[1693589791118,0.294638,25465.0,25461.0,0.618938]
[1693589791422,0.294638,25465.0,25464.0,1.0369]
[1693589791423,0.613206,25465.0,25464.0,1.0369]
[1693589791819,0.78614355,25465.0,25464.0,1.0369]
[1693589792726,0.61751245,25465.0,25464.0,1.0669]
[1693589793320,0.01123645,25465.0,25464.0,1.38155]
[1693589793522,0.01123645,25465.0,25464.0,1.528875]
[1693589793720,0.04523645,25465.0,25464.0,1.64125314]
[1693589794217,0.04523645,25465.0,25464.0,1.60825314]
[1693589794218,0.03550113,25465.0,25464.0,1.60825314]
[1693589794416,0.07250113,25465.0,25464.0,1.62225314]
[1693589794924,0.07450113,25465.0,25464.0,1.64825314]
[1693589795112,0.04350113,25465.0,25464.0,1.64625314]
[1693589795719,0.04350113,25465.0,25464.0,1.62625314]
[1693589796123,0.03957113,25465.0,25464.0,1.79357814]
[1693589796316,0.05757163,25471.0,25466.0,1.0369]
[1693589796317,0.00393,25471.0,25466.0,1.0369]
[1693589796518,0.00393,25471.0,25470.0,1.0369]
[1693589796718,0.00393,25471.0,25470.0,1.58814814]
[1693589797521,0.04093,25471.0,25470.0,1.83379267]
[1693589797719,0.18850528,25471.0,25470.0,1.83379267]
[1693589797919,0.50307328,25471.0,25470.0,1.28254453]
[1693589798119,0.65035728,25471.0,25470.0,0.003]
[1693589798323,0.445956,25461.0,25459.0,0.147352]
[1693589798523,0.445974,25460.0,25459.0,0.147352]
[1693589798722,0.298626,25460.0,25459.0,1.56722443]
[1693589798925,0.29895313,25460.0,25459.0,1.56722443]
[1693589799127,0.00425713,25460.0,25459.0,1.71457743]
[1693589799321,0.00032713,25460.0,25459.0,1.82395557]
[1693589799918,0.00393,25460.0,25459.0,1.28261942]
[1693589800130,0.02393,25460.0,25459.0,0.24571942]
[1693589800333,0.613322,25460.0,25459.0,0.24571942]
[1693589800523,0.1765611,25459.0,25458.0,1.00552247]
[1693589800724,0.7859771,25459.0,25458.0,1.00552247]
[1693589801026,0.78630256,25459.0,25458.0,1.00552247]
[1693589801429,0.78630256,25459.0,25458.0,1.25127407]
[1693589801622,0.85930256,25459.0,25458.0,1.00852247]
[1693589803027,0.66667146,25459.0,25458.0,1.11790061]
[1693589803328,0.66667146,25459.0,25458.0,1.00852247]
[1693589803631,0.62967146,25459.0,25458.0,1.00552247]
[1693589803831,0.65067146,25459.0,25458.0,1.00852247]
[1693589804134,0.68667146,25459.0,25458.0,1.00852247]
[1693589804335,0.53931746,25459.0,25458.0,1.00852247]
[1693589804733,0.53931746,25459.0,25458.0,1.26525961]
[1693589805136,0.51931746,25459.0,25458.0,1.26525961]
[1693589805333,0.51031746,25459.0,25458.0,1.26525961]
[1693589805529,0.00393,25462.0,25458.0,3.00995421]
[1693589805738,0.298603,25462.0,25461.0,1.0369]
[1693589805930,0.298603,25462.0,25461.0,1.184242]
[1693589806234,0.298603,25462.0,25461.0,1.29362014]
[1693589806436,0.298603,25462.0,25461.0,1.14627814]
[1693589806437,0.44594,25462.0,25461.0,1.14627814]
[1693589806622,0.67281133,25462.0,25461.0,1.0369]
[1693589807033,0.00393,25461.0,25460.0,1.0369]
[1693589807233,0.67283233,25461.0,25460.0,1.0369]
[1693589807538,0.7859291,25461.0,25460.0,0.97130001]
[1693589807731,0.7859291,25461.0,25458.0,0.002]
[1693589807732,0.00393,25459.0,25458.0,1.0369]
[1693589807929,0.67288033,25459.0,25458.0,1.0299]
[1693589808135,0.00393,25454.0,25453.0,0.467273]
[1693589808335,0.298698,25454.0,25453.0,1.43005071]
[1693589808538,0.446082,25454.0,25453.0,1.43005071]
[1693589808739,0.55917877,25454.0,25453.0,1.4300569]
[1693589808939,0.55917877,25454.0,25453.0,1.184289]
[1693589809238,0.446082,25454.0,25453.0,1.57744801]
[1693589809439,0.446082,25454.0,25453.0,1.68682615]
[1693589810137,0.450082,25454.0,25453.0,1.71382615]
[1693589810334,0.450082,25454.0,25453.0,1.46805614]
[1693589810635,0.452082,25454.0,25453.0,1.50505614]
[1693589810935,0.452082,25454.0,25453.0,1.67244514]
[1693589810936,0.3050245,25454.0,25453.0,1.67244514]
[1693589811126,0.0063265,25454.0,25453.0,1.918195]
[1693589811325,0.3,25460.0,25453.0,1.918195]
[1693589811326,0.151274,25461.0,25455.0,0.589508]
[1693589811535,0.151274,25461.0,25458.0,1.0369]
[1693589811536,0.00393,25460.0,25458.0,1.0369]
[1693589811837,0.00393,25460.0,25454.0,0.294759]
[1693589811838,0.00393,25455.0,25454.0,0.294759]
[1693589812037,0.151307,25455.0,25454.0,1.57742161]
[1693589812239,0.298672,25456.0,25454.0,1.83418275]
[1693589812434,0.298672,25456.0,25454.0,1.479042]
[1693589812937,0.00393,25455.0,25454.0,1.0369]
[1693589813141,0.298684,25455.0,25454.0,1.0369]
[1693589813435,0.446061,25455.0,25454.0,1.184283]
[1693589813738,0.446061,25455.0,25454.0,1.29366114]
[1693589813940,0.151304,25456.0,25454.0,1.58842714]
[1693589814135,0.30393,25456.0,25455.0,1.14627814]
[1693589814338,0.30393,25456.0,25454.0,0.037]
[1693589814339,0.298684,25455.0,25454.0,0.037]
[1693589814537,0.613438,25455.0,25454.0,0.037]
[1693589814736,0.613438,25455.0,25439.0,0.22534604]
[1693589814737,0.00393,25440.0,25439.0,0.22534604]
[1693589814939,0.151394,25440.0,25439.0,1.83455116]
[1693589815143,0.00393,25440.0,25439.0,1.83455216]
[1693589815537,0.15139,25441.0,25439.0,1.83455216]
[1693589815736,0.298849,25441.0,25440.0,0.24586702]
[1693589816040,0.298849,25441.0,25439.0,1.331836]
[1693589816041,0.00393,25440.0,25439.0,1.0369]
[1693589816238,0.298858,25440.0,25439.0,1.0369]
[1693589816541,0.446322,25440.0,25439.0,1.0369]
[1693589816737,0.298858,25440.0,25439.0,1.29374614]
[1693589816937,0.00393,25440.0,25439.0,1.44121414]
[1693589817340,0.00393,25440.0,25439.0,1.14627814]
[1693589817341,0.151393,25440.0,25439.0,1.14627814]
[1693589817548,0.151393,25440.0,25433.0,0.1698]
[1693589817549,0.00393,25437.0,25434.0,0.147497]
[1693589817846,0.151412,25437.0,25436.0,1.184384]
[1693589818032,0.298894,25437.0,25436.0,1.184384]
[1693589818233,0.153463,25440.0,25436.0,1.499362]
[1693589818234,0.157393,25440.0,25436.0,1.499362]
[1693589818442,0.30486,25440.0,25439.0,1.0369]
[1693589818742,0.30186,25440.0,25439.0,1.0669]
[1693589818943,0.449325,25440.0,25439.0,1.0669]
[1693589819442,0.7924211,25440.0,25439.0,1.0369]
[1693589820036,0.7924211,25440.0,25436.0,0.067]
[1693589820037,1.50393,25437.0,25436.0,0.067]
[1693589820348,2.2708711,25437.0,25436.0,0.03487665]
[1693589820938,0.00393,25434.0,25432.0,0.295019]
[1693589821134,0.147479,25438.0,25435.0,1.0369]
[1693589821338,0.151401,25439.0,25438.0,0.294952]
[1693589821941,0.298872,25439.0,25438.0,0.294952]
[1693589822338,0.41196877,25439.0,25437.0,1.18438]
[1693589822546,0.00393,25438.0,25437.0,1.0369]
[1693589822741,0.446358,25438.0,25437.0,1.0369]
[1693589822937,0.55552477,25438.0,25437.0,1.184382]
[1693589823250,0.007,25439.0,25437.0,1.646828]
[1693589823636,0.007,25439.0,25438.0,0.10937814]
[1693589823843,0.007,25439.0,25438.0,1.30638371]
[1693589824042,0.151367,25445.0,25438.0,1.30638371]
[1693589824246,0.298806,25445.0,25444.0,1.0369]
[1693589824446,0.6388761,25445.0,25444.0,1.0369]
[1693589825145,0.446245,25445.0,25444.0,1.0369]
[1693589825549,0.446245,25445.0,25444.0,1.0399]
[1693589825550,0.299806,25445.0,25444.0,1.0399]
[1693589825751,0.314806,25445.0,25444.0,1.189341]
[1693589826055,0.54177933,25445.0,25444.0,1.0419]
[1693589826946,0.54177933,25445.0,25444.0,0.005]
[1693589827152,0.314806,25445.0,25444.0,0.152441]
[1693589828150,0.4874371,25445.0,25444.0,0.152441]
[1693589828350,0.462244,25445.0,25444.0,0.005]
[1693589828749,0.6348751,25445.0,25444.0,0.005]
[1693589829053,0.314805,25445.0,25444.0,0.152441]
[1693589829448,0.462243,25445.0,25444.0,0.005]
[1693589829751,0.54177733,25445.0,25444.0,0.005]
[1693589829943,0.59533977,25445.0,25444.0,0.005]
[1693589830145,0.6548741,25445.0,25444.0,0.005]
[1693589830340,0.59533977,25445.0,25444.0,0.005]
[1693589830551,0.482243,25445.0,25444.0,0.005]
[1693589831347,0.462243,25445.0,25444.0,0.005]
[1693589831546,0.482243,25445.0,25444.0,0.005]
[1693589831747,0.52177733,25445.0,25444.0,0.005]
[1693589831950,0.462243,25445.0,25444.0,0.152441]
[1693589832353,0.314805,25445.0,25444.0,0.152441]
[1693589832548,0.314805,25445.0,25444.0,1.74104214]
[1693589832549,0.016,25445.0,25444.0,1.74104214]
[1693589832742,0.03121832,25448.0,25444.0,1.76104214]
[1693589832947,0.15131,25455.0,25450.0,1.0369]
[1693589833147,0.15131,25455.0,25454.0,1.0369]
[1693589833341,0.15131,25455.0,25454.0,1.44104414]
[1693589833342,0.298691,25455.0,25454.0,1.44104414]
[1693589833548,0.55916877,25455.0,25454.0,1.184283]
[1693589833759,0.55916877,25455.0,25449.0,0.1701]
[1693589833760,0.00393,25450.0,25449.0,0.1701]
[1693589834053,0.50568533,25450.0,25449.0,0.1701]
[1693589834251,0.7661891,25450.0,25449.0,0.1701]
[1693589834456,0.7661891,25450.0,25444.0,0.151441]
[1693589834457,0.00393,25445.0,25444.0,1.0379]
[1693589834646,0.00393,25445.0,25444.0,1.514079]
[1693589834647,0.298802,25445.0,25444.0,1.514079]
[1693589834846,0.298802,25445.0,25444.0,1.331779]
[1693589835049,0.00393,25443.0,25442.0,0.1823]
[1693589835344,0.298826,25443.0,25442.0,0.329753]
[1693589835544,0.298826,25443.0,25442.0,0.1823]
[1693589835545,0.70681877,25443.0,25442.0,0.1823]
[1693589835752,0.00393,25440.0,25438.0,1.184374]
[1693589835946,0.294942,25439.0,25438.0,1.351849]
[1693589836344,0.00393,25438.0,25437.0,0.3554]
[1693589836549,0.446361,25438.0,25437.0,0.3554]
[1693589836744,0.6189921,25438.0,25437.0,0.3554]
[1693589836956,0.7664691,25438.0,25437.0,0.3554]
[1693589837258,0.7664691,25438.0,25433.0,0.295007]
[1693589837259,0.00393,25435.0,25433.0,0.295006]
[1693589837455,0.295,25434.0,25433.0,0.315006]
[1693589837751,0.1475,25434.0,25433.0,0.70844512]
[1693589838058,0.446429,25435.0,25433.0,0.81782326]
[1693589838254,0.446429,25435.0,25434.0,0.24593312]
[1693589838453,0.446429,25435.0,25434.0,0.54093412]
[1693589839454,0.55952577,25435.0,25434.0,0.54093412]
[1693589839757,0.151413,25437.0,25434.0,1.85471326]
[1693589839956,0.151413,25437.0,25436.0,0.294978]
[1693589839957,0.298899,25437.0,25436.0,0.294978]
[1693589840155,0.298899,25437.0,25436.0,0.147489]
[1693589840361,0.00393,25436.0,25435.0,0.147495]
[1693589840549,0.298922,25435.0,25434.0,0.332002]
[1693589840859,0.302922,25435.0,25434.0,0.58493766]
[1693589841382,0.302922,25435.0,25434.0,0.8048178]
[1693589841550,0.004,25435.0,25434.0,0.69543966]
[1693589841856,0.004,25435.0,25434.0,2.0092198]
[1693589842052,0.004,25435.0,25434.0,2.0462198]
[1693589842053,0.007,25435.0,25434.0,2.0462198]
[1693589842650,0.007,25435.0,25434.0,2.0392198]
[1693589842651,0.003,25435.0,25434.0,2.0392198]
[1693589842847,0.003,25435.0,25434.0,0.72543966]
[1693589842848,0.11609677,25435.0,25434.0,0.72543966]
[1693589843558,0.007,25435.0,25434.0,0.8418178]
[1693589843857,0.007,25435.0,25434.0,2.0462198]
[1693589844453,0.007,25435.0,25434.0,1.8987178]
[1693589844657,0.305922,25435.0,25434.0,1.76933966]
[1693589845352,0.305922,25435.0,25434.0,1.8787178]
[1693589845559,0.305922,25435.0,25434.0,1.76933966]
[1693589845862,0.325922,25435.0,25434.0,1.76933966]
[1693589846052,0.43901877,25435.0,25434.0,1.76933966]
[1693589847164,0.43901877,25435.0,25434.0,0.58494393]
[1693589848549,0.4985531,25435.0,25434.0,0.58494393]
[1693589848755,0.43901877,25435.0,25434.0,0.58494393]
[1693589848954,0.58651477,25435.0,25434.0,0.58494393]
[1693589849255,0.7735451,25435.0,25434.0,0.28994193]
[1693589849460,2.1410411,25435.0,25434.0,0.28994193]
[1693589849656,3.1779411,25435.0,25434.0,0.1698]
[1693589849966,0.59403,25430.0,25429.0,0.13746562]
[1693589850164,0.00393,25428.0,25427.0,0.295078]
[1693589850357,0.00393,25428.0,25426.0,0.295091]
[1693589850358,0.00393,25427.0,25426.0,0.295091]
[1693589850556,0.00393,25427.0,25425.0,0.147552]
[1693589850557,0.6391871,25427.0,25425.0,0.147552]
[1693589850862,0.00393,25426.0,25425.0,0.44266]
[1693589851054,0.55967077,25426.0,25425.0,0.295106]
[1693589851249,0.151478,25426.0,25425.0,0.55203814]
[1693589851456,0.299026,25426.0,25425.0,0.295106]
[1693589851650,0.6192051,25426.0,25425.0,0.295106]
[1693589851864,0.41212277,25426.0,25425.0,0.295106]
[1693589852267,0.4716571,25426.0,25425.0,0.295106]
[1693589852462,0.6192051,25426.0,25425.0,0.295106]
[1693589852765,0.6192051,25426.0,25421.0,0.07788004]
[1693589852766,1.20393,25422.0,25421.0,0.07788004]
[1693589853061,1.20393,25422.0,25416.0,0.30336508]
[1693589853062,0.890308,25421.0,25416.0,0.27930634]
[1693589853261,0.910308,25421.0,25416.0,1.46381234]
[1693589853761,0.910308,25421.0,25416.0,1.31620634]
[1693589854153,0.910308,25421.0,25414.0,0.3541]
[1693589854154,0.00393,25416.0,25414.0,0.1777]
[1693589854359,0.7630791,25415.0,25414.0,0.13025716]
[1693589854562,0.7630791,25415.0,25411.0,0.295264]
[1693589854760,0.1726311,25414.0,25411.0,0.295264]
[1693589854963,0.442872,25413.0,25411.0,0.315264]
[1693589855361,0.06346433,25412.0,25411.0,0.315264]
[1693589855558,0.35872233,25412.0,25411.0,0.315264]
[1693589855756,0.4718191,25412.0,25411.0,0.295264]
[1693589856156,0.00393,25411.0,25410.0,1.18454]
[1693589856363,0.299237,25414.0,25410.0,1.499823]
[1693589856572,0.004,25414.0,25412.0,1.0369]
[1693589856868,0.004,25414.0,25413.0,1.73676214]
[1693589857165,0.147582,25420.0,25413.0,1.73676214]
[1693589857166,0.06384162,25423.0,25413.0,2.64640073]
[1693589857465,0.00393,25423.0,25420.0,2.0738]
[1693589857772,0.44664,25422.0,25420.0,0.295157]
[1693589857954,0.44664,25422.0,25419.0,1.184486]
[1693589858154,0.44664,25422.0,25419.0,1.332073]
[1693589858155,0.11309677,25421.0,25419.0,1.332073]
[1693589858352,0.299094,25420.0,25419.0,1.332073]
[1693589858558,0.00393,25421.0,25419.0,1.627249]
[1693589858764,0.00393,25421.0,25420.0,1.479646]
[1693589858962,0.151506,25421.0,25420.0,1.58902414]
[1693589859163,0.151506,25421.0,25420.0,1.332064]
[1693589859164,0.26460277,25421.0,25420.0,1.332064]
[1693589859357,0.299108,25419.0,25418.0,0.14759]
[1693589859553,0.35864233,25419.0,25418.0,0.295185]
[1693589859758,0.00393,25419.0,25418.0,1.47968]
[1693589859961,0.29517,25420.0,25418.0,1.47968]
[1693589860358,0.11309677,25419.0,25418.0,1.47968]
[1693589860662,0.6423281,25419.0,25418.0,0.033]
[1693589860862,0.6453281,25419.0,25418.0,0.07]
[1693589861067,0.6413981,25419.0,25418.0,0.07]
[1693589862164,0.50530133,25419.0,25418.0,0.217595]
[1693589862360,0.298178,25419.0,25418.0,0.36519]
[1693589862760,0.6383991,25419.0,25418.0,0.36519]
[1693589862967,0.6413991,25419.0,25418.0,0.07]
[1693589863360,1.8258891,25419.0,25418.0,0.07]
[1693589863559,2.1258891,25419.0,25418.0,0.07]
[1693589863761,3.3258891,25419.0,25418.0,0.07]
[1693589864962,3.3258891,25419.0,25418.0,0.0393266]
[1693589865163,3.3258891,25419.0,25409.0,0.17532]
[1693589865164,1.2,25413.0,25409.0,0.17532]
[1693589865373,0.00393,25411.0,25409.0,0.147766]
[1693589865573,0.446853,25410.0,25409.0,0.147766]
[1693589865870,0.6194841,25410.0,25409.0,0.147766]
[1693589866374,0.00393,25410.0,25409.0,0.44306]
[1693589866566,0.00393,25410.0,25409.0,0.46506]
[1693589866567,0.151571,25410.0,25409.0,0.46506]
[1693589866877,0.151571,25410.0,25406.0,0.1754]
[1693589866878,0.151571,25410.0,25406.0,0.16649322]
[1693589866879,0.00393,25409.0,25406.0,0.16649322]
[1693589867169,3.583807,25407.0,25403.0,0.32288]
[1693589867365,0.446961,25404.0,25403.0,0.11668]
[1693589867559,0.56005777,25404.0,25403.0,0.11668]
[1693589867765,0.6395921,25404.0,25403.0,0.11668]
[1693589868068,1.9564921,25404.0,25403.0,0.11668]
[1693589868271,0.00393,25403.0,25400.0,0.147697]
[1693589868474,1.0369,25401.0,25400.0,0.147697]
[1693589868770,1.332288,25401.0,25400.0,0.1477]
[1693589868961,1.6526131,25401.0,25400.0,0.1477]
[1693589869166,1.6726131,25401.0,25400.0,0.147699]
[1693589869469,0.02,25401.0,25400.0,0.443097]
[1693589869666,0.004,25403.0,25400.0,1.647696]
[1693589869871,0.03073939,25410.0,25402.0,0.3]
[1693589870171,0.00393,25409.0,25405.0,0.73834]
[1693589870368,0.00393,25409.0,25406.0,0.10937814]
[1693589870563,0.11309677,25408.0,25407.0,0.442971]
[1693589870763,0.26467777,25408.0,25407.0,0.295314]
[1693589870969,0.00393,25407.0,25406.0,0.147658]
[1693589871166,0.00393,25407.0,25406.0,0.295321]
[1693589871167,0.4718751,25407.0,25406.0,0.295321]
[1693589871468,0.6356021,25407.0,25406.0,0.147658]
[1693589871674,0.02,25407.0,25406.0,0.442984]
[1693589871866,0.446874,25409.0,25406.0,0.442984]
[1693589872068,0.00393,25409.0,25406.0,0.442984]
[1693589872276,0.003,25410.0,25407.0,0.10937814]
[1693589872474,0.003,25410.0,25408.0,0.590604]
[1693589872673,0.00393,25411.0,25408.0,0.610604]
[1693589872971,0.00393,25411.0,25408.0,0.295302]
[1693589872972,0.151646,25409.0,25408.0,0.295302]
[1693589873177,0.303222,25409.0,25407.0,0.147653]
[1693589873472,0.1765611,25408.0,25407.0,0.184653]
[1693589873679,0.4718651,25408.0,25407.0,0.332306]
[1693589874068,0.4718651,25408.0,25407.0,0.479963]
[1693589874272,0.00393,25408.0,25407.0,0.479963]
[1693589874477,0.303224,25409.0,25407.0,0.479963]
[1693589874684,0.155576,25409.0,25407.0,0.58934114]
[1693589874973,1.15392677,25408.0,25407.0,0.184653]
[1693589875175,1.74453077,25408.0,25407.0,0.037]
[1693589875475,1.8240651,25408.0,25407.0,0.00700638]
[1693589875669,0.147686,25402.0,25400.0,0.295394]
[1693589875864,1.0369,25403.0,25400.0,0.590791]
[1693589876076,0.29534,25405.0,25400.0,0.610791]
[1693589876077,1.0369,25405.0,25400.0,0.610791]
[1693589876379,1.184569,25405.0,25400.0,0.75849]
[1693589876576,0.00393,25407.0,25401.0,1.0369]
[1693589876577,0.299246,25407.0,25401.0,1.0369]
[1693589876878,0.00393,25407.0,25402.0,0.59074]
[1693589877079,0.299243,25407.0,25402.0,0.61074]
[1693589877283,0.004,25405.0,25402.0,0.61074]
[1693589877580,0.004,25405.0,25403.0,0.10937814]
[1693589877775,0.004,25407.0,25404.0,1.627604]
[1693589878079,0.004,25407.0,25406.0,0.59066]
[1693589878467,0.303248,25407.0,25406.0,0.442995]
[1693589878672,0.303248,25407.0,25406.0,0.29533]
[1693589878977,0.008,25407.0,25406.0,0.41260795]
[1693589879181,0.008,25407.0,25406.0,0.56027295]
[1693589879376,0.004,25407.0,25406.0,0.56027295]
[1693589879579,0.004,25407.0,25406.0,0.66965109]
[1693589879783,0.002,25407.0,25406.0,0.68765109]
[1693589880077,0.003,25407.0,25406.0,1.55000458]
[1693589880281,1.27695012,25413.0,25406.0,2.58429808]
[1693589880282,0.09242512,25413.0,25406.0,2.58429808]
[1693589880484,0.0603,25413.0,25412.0,2.221429]
[1693589880683,0.151496,25423.0,25412.0,2.811945]
[1693589880869,0.00393,25422.0,25412.0,1.62961408]
[1693589881076,0.00393,25422.0,25412.0,0.147625]
[1693589881077,1.0369,25413.0,25412.0,0.147625]
[1693589881376,1.6724021,25413.0,25412.0,0.147625]
[1693589881577,1.6724021,25413.0,25411.0,0.295265]
[1693589881773,0.00393,25411.0,25410.0,0.147637]
[1693589881973,1.647396,25413.0,25410.0,0.295275]
[1693589882176,1.650396,25413.0,25412.0,0.037]
[1693589882481,0.024,25413.0,25412.0,0.332258]
[1693589882683,0.151516,25420.0,25412.0,1.964416]
[1693589882882,0.295159,25421.0,25417.0,1.0369]
[1693589883080,1.0369,25423.0,25419.0,1.0369]
[1693589883081,0.00393,25423.0,25419.0,1.0369]
[1693589883270,0.151496,25423.0,25420.0,0.442749]
[1693589883476,0.11309677,25422.0,25420.0,0.590332]
[1693589883682,0.11309677,25422.0,25421.0,0.10937814]
[1693589883876,0.299037,25425.0,25421.0,1.6272]
[1693589884086,0.05953433,25424.0,25421.0,1.6272]
[1693589884376,0.147558,25424.0,25421.0,1.6272]
[1693589884582,0.147559,25424.0,25422.0,0.10937814]
[1693589884770,0.295118,25424.0,25421.0,1.6472]
[1693589884977,0.147559,25424.0,25421.0,1.6472]
[1693589885176,0.35465233,25424.0,25421.0,1.6472]
[1693589885478,0.295118,25424.0,25421.0,1.6272]
[1693589885679,0.036,25422.0,25421.0,1.6472]
[1693589886075,0.036,25422.0,25421.0,1.75657814]
[1693589886280,1.06902143,25429.0,25421.0,1.90415514]
[1693589886281,0.036,25424.0,25421.0,1.90415514]
[1693589886484,0.03212143,25429.0,25423.0,1.0369]
[1693589886682,0.147527,25430.0,25427.0,1.0369]
[1693589886886,0.446495,25431.0,25428.0,0.55198614]
[1693589887086,0.05805919,25433.0,25430.0,1.0369]
[1693589887392,0.295038,25431.0,25430.0,0.295046]
[1693589887775,0.40813477,25431.0,25430.0,0.147522]
[1693589888285,0.00393,25430.0,25429.0,0.1816]
[1693589888482,0.72712277,25430.0,25429.0,0.1816]
[1693589888678,0.7866571,25430.0,25429.0,0.1816]
[1693589889482,0.8306571,25430.0,25429.0,0.1856]
[1693589889684,0.044,25430.0,25429.0,0.59003814]
[1693589889888,0.044,25430.0,25429.0,0.73756814]
[1693589890090,0.044,25430.0,25429.0,0.75756814]
[1693589890289,0.15709677,25430.0,25429.0,0.48066]
[1693589890594,0.486572,25430.0,25429.0,0.1856]
[1693589890794,0.6631331,25430.0,25429.0,0.1856]
[1693589890983,0.490502,25430.0,25429.0,0.1856]
[1693589891286,0.342978,25430.0,25429.0,0.33313]
[1693589891588,0.339048,25430.0,25429.0,1.51756]
[1693589891889,0.658026,25430.0,25429.0,0.1856]
[1693589892089,0.8306571,25430.0,25429.0,0.1856]
[1693589892491,0.13133191,25428.0,25423.0,0.1834]
[1693589892688,0.00393,25424.0,25423.0,0.12140411]
[1693589892887,0.00393,25422.0,25420.0,1.0369]
[1693589893087,0.442734,25421.0,25420.0,1.0369]
[1693589893386,0.295156,25421.0,25420.0,1.332066]
[1693589894078,0.295156,25421.0,25420.0,1.479652]
[1693589894285,0.462734,25421.0,25419.0,0.328284]
[1693589894595,0.1726311,25420.0,25418.0,0.025]
[1693589894888,1.631182,25419.0,25418.0,0.025]
[1693589895093,1.7998831,25419.0,25418.0,0.025]
[1693589895295,0.442764,25419.0,25418.0,1.0619]
[1693589895787,0.008,25421.0,25418.0,1.78165414]
[1693589895987,0.151576,25421.0,25420.0,1.184482]
[1693589896193,0.162588,25419.0,25418.0,1.362083]
[1693589896394,0.310176,25419.0,25418.0,1.362083]
[1693589896585,0.015,25419.0,25418.0,1.654273]
[1693589896787,0.32645375,25425.0,25418.0,1.82165114]
[1693589896982,0.32645275,25425.0,25424.0,1.0369]
[1693589897194,0.49793875,25425.0,25424.0,1.0369]
[1693589897587,0.00393,25419.0,25418.0,0.069]
[1693589897792,0.594286,25419.0,25418.0,0.069]
[1693589898193,0.594286,25419.0,25418.0,0.072]
[1693589898394,0.618286,25419.0,25418.0,0.072]
[1693589898589,0.53023133,25419.0,25418.0,0.072]
[1693589898791,0.470697,25419.0,25418.0,0.219594]
[1693589899093,0.470697,25419.0,25418.0,0.072]
[1693589899294,0.303108,25419.0,25418.0,0.47656614]
[1693589899593,0.00793,25419.0,25418.0,0.62416014]
[1693589899785,0.56379377,25419.0,25418.0,0.072]
[1693589899989,1.76828277,25419.0,25418.0,0.072]
[1693589900489,1.8278171,25419.0,25418.0,0.072]
[1693589900792,1.8278171,25419.0,25418.0,0.065]
[1693589901186,0.7949171,25419.0,25418.0,0.076]
[1693589901387,0.7949171,25419.0,25418.0,0.0164626]
[1693589901388,0.73538277,25419.0,25418.0,0.0164626]
[1693589901688,0.442956,25408.0,25406.0,0.147661]
[1693589901883,0.50249033,25408.0,25406.0,0.147661]
[1693589902088,0.442956,25408.0,25406.0,0.147661]
[1693589902392,0.462956,25408.0,25406.0,0.147661]
[1693589902989,0.295328,25406.0,25405.0,0.179]